bitfinex/quotes_ETHUSD_20260106
["timestamp","ask_amount","ask_price","bid_price","bid_amount"]
[1767661028863,0.90111089,3212.4,3212.1,0.002]
[1767661029182,0.91164961,3212.7,3212.1,0.002]
[1767661029388,0.90011089,3212.7,3212.1,0.002]
[1767661030252,0.01153872,3212.6,3212.1,0.002]
[1767661030959,0.91164961,3212.6,3212.1,0.002]
[1767661031658,0.90011089,3212.5,3211.8,0.002]
[1767661031865,0.91164961,3212.4,3211.8,0.002]
[1767661032163,0.91164961,3212.4,3211.8,0.91232641]
[1767661032376,1.04343129,3212.6,3211.8,0.91232641]
[1767661032377,1.94354218,3212.6,3211.8,0.91232641]
[1767661032673,0.91164961,3212.5,3211.8,0.91232641]
[1767661033483,0.90011089,3212.5,3211.8,0.91232641]
[1767661034354,0.001,3212.3,3211.8,0.91232641]
[1767661046228,0.001,3212.3,3212.1,0.002]
[1767661051869,0.93278407,3212.3,3212.1,0.002]
[1767661052070,0.93078408,3212.3,3212.1,0.002]
[1767661052386,0.01153872,3212.4,3212.1,0.002]
[1767661053089,0.93178407,3212.5,3212.1,0.002]
[1767661053898,4.04452725,3212.7,3212.1,0.002]
[1767661054102,1.9772368,3212.6,3212.1,0.002]
[1767661054506,5.08998619,3212.6,3212.1,0.002]
[1767661054909,0.93178407,3212.5,3212.1,0.002]
[1767661058303,0.001,3212.2,3212.1,0.002]
[1767661058705,0.001,3212.2,3211.8,0.002]
[1767661058999,0.93278407,3212.2,3211.8,0.002]
[1767661059502,0.93278407,3212.2,3211.6,0.93449664]
[1767661060006,0.001,3212.2,3211.6,0.93449664]
[1767661061204,0.001,3212.2,3211.6,1.1098463]
[1767661063001,0.93278407,3212.2,3211.6,0.17534966]
[1767661063194,0.93278407,3212.2,3211.5,0.817]
[1767661063379,0.93278407,3212.2,3211.5,1.75149664]
[1767661065221,0.93278407,3212.2,3211.6,0.93449664]
[1767661065506,0.001,3212.2,3211.6,0.93449664]
[1767661069083,0.001,3212.2,3211.7,0.96563279]
[1767661069389,0.001,3212.2,3211.7,0.93449664]
[1767661069782,0.001,3212.2,3211.9,0.002]
[1767661071005,0.001,3212.2,3212.0,0.03113325]
[1767661071524,0.001,3212.2,3211.9,0.002]
[1767661073533,0.93178407,3212.1,3211.5,0.002]
[1767661073823,0.93178407,3212.1,3211.0,0.002]
[1767661074030,0.93178407,3211.9,3211.0,0.93649664]
[1767661075816,0.97533448,3211.7,3211.0,0.93649664]
[1767661077035,0.97533448,3211.7,3211.0,0.002]
[1767661078115,4.08904727,3211.6,3211.0,0.002]
[1767661078506,0.97533448,3211.6,3211.0,0.002]
[1767661080534,0.97533448,3211.5,3211.0,0.002]
[1767661081431,0.97533448,3211.5,3211.3,0.002]
[1767661081623,0.7202508,3211.6,3211.3,0.002]
[1767661082122,0.96767043,3211.9,3211.3,0.002]
[1767661082301,0.001,3211.9,3211.4,0.816]
[1767661082499,0.001,3211.9,3211.5,0.91166112]
[1767661083437,0.001,3211.9,3211.4,0.816]
[1767661083641,0.001,3211.9,3211.3,0.818]
[1767661084018,0.001,3211.9,3211.3,1.72966112]
[1767661084416,0.96767043,3211.9,3211.3,1.72966112]
[1767661084622,0.97920915,3211.9,3211.3,1.72966112]
[1767661084819,4.08109695,3211.9,3211.3,1.72966112]
[1767661085019,0.96767043,3211.9,3211.3,1.72966112]
[1767661085726,0.01153872,3211.8,3211.3,0.818]
[1767661085933,4.08112923,3211.9,3211.3,0.818]
[1767661086133,5.26553964,3211.9,3211.3,0.818]
[1767661087542,0.01153872,3211.8,3211.3,0.818]
[1767661087962,2.15208084,3211.9,3211.3,0.818]
[1767661088130,5.26550811,3211.9,3211.3,0.818]
[1767661090162,0.97820915,3211.8,3211.3,0.818]
[1767661090771,0.96667043,3211.8,3211.3,0.818]
[1767661092115,0.001,3211.9,3211.3,0.818]
[1767661092350,0.001,3211.9,3211.3,1.72966112]
[1767661093367,0.001,3211.6,3211.3,1.72966112]
[1767661094226,0.001,3211.6,3211.4,0.91166112]
[1767661094425,0.001,3211.9,3211.6,0.91166112]
[1767661119288,0.001,3212.2,3211.8,0.9073041]
[1767661120862,0.001,3212.2,3211.8,1.7223041]
[1767661123190,0.001,3212.2,3211.9,0.9073041]
[1767661123370,0.001,3212.2,3212.0,0.17223041]
[1767661128395,0.001,3212.2,3211.8,0.815]
[1767661128765,0.001,3211.9,3211.8,0.815]
[1767661139112,0.001,3211.9,3211.3,0.17496611]
[1767661139293,0.92466852,3211.9,3211.4,0.815]
[1767661140110,0.001,3211.9,3211.6,0.002]
[1767661144722,0.001,3211.9,3211.6,0.17431967]
[1767661149115,0.99854843,3211.9,3211.4,0.815]
[1767661149901,0.001,3211.9,3211.4,1.72119665]
[1767661150101,0.001,3211.9,3211.5,0.90619665]
[1767661150336,0.001,3211.9,3211.5,1.09581293]
[1767661152620,0.001,3211.9,3211.8,0.002]
[1767661152827,0.001,3211.9,3211.5,0.90619665]
[1767661153031,0.001,3211.9,3211.5,0.90819665]
[1767661157740,0.99854843,3211.9,3211.4,0.815]
[1767661158131,0.99854843,3211.9,3211.3,0.98996611]
[1767661159039,0.99854843,3211.9,3211.3,0.817]
[1767661160414,0.99854843,3211.9,3211.3,0.002]
[1767661163623,0.99854843,3211.9,3211.0,0.002]
[1767661163840,0.99754843,3211.8,3211.0,0.817]
[1767661164953,0.99754843,3211.8,3211.0,1.72319665]
[1767661165163,0.99754843,3211.8,3211.1,0.48375852]
[1767661165553,0.99754843,3211.8,3211.0,1.72319665]
[1767661166068,0.001,3211.6,3211.0,1.72319665]
[1767661166230,0.001,3211.6,3211.1,0.90619665]
[1767661169058,0.99754843,3211.5,3211.0,0.817]
[1767661170665,0.99754843,3211.5,3211.0,3.93128573]
[1767661170836,0.99754843,3211.5,3211.1,0.39312857]
[1767661171879,0.001,3211.6,3211.1,0.39312857]
[1767661172037,0.001,3211.6,3211.1,1.30200115]
[1767661177672,0.001,3211.6,3211.4,0.002]
[1767661185969,0.93575335,3211.6,3211.4,0.002]
[1767661189978,0.001,3211.6,3211.4,0.002]
[1767661192184,0.001,3211.6,3211.4,0.095417]
[1767661196159,0.001,3211.9,3211.4,0.095417]
[1767661196356,0.82807884,3211.8,3211.4,0.095417]
[1767661196669,0.82607885,3211.8,3211.5,0.32093619]
[1767661196853,0.001,3211.9,3211.4,1.05055401]
[1767661199963,0.91015514,3211.9,3211.4,0.095417]
[1767661200297,0.90915514,3211.7,3211.1,0.093425]
[1767661200477,4.65073326,3211.5,3211.0,0.002]
[1767661200672,0.90915514,3211.3,3210.5,4.88786573]
[1767661200867,0.90915514,3211.3,3210.6,4.07180482]
[1767661201179,0.90915514,3211.3,3210.6,0.95713701]
[1767661201374,0.90915514,3211.3,3210.6,4.07179997]
[1767661202389,0.90915514,3211.3,3210.6,0.002]
[1767661202557,0.90021866,3211.2,3210.6,0.002]
[1767661202955,0.90021866,3211.2,3210.6,3.11667938]
[1767661203159,0.001,3211.6,3210.8,30.0]
[1767661203370,0.001,3211.6,3211.1,0.90439626]
[1767661203592,0.001,3211.6,3211.2,0.90439626]
[1767661206273,0.001,3211.6,3211.1,0.816]
[1767661206792,0.001,3211.6,3211.1,4.83458328]
[1767661207194,0.001,3211.6,3211.2,3.11409698]
[1767661207365,0.001,3211.6,3211.1,4.8345658]
[1767661207859,0.001,3211.6,3211.1,1.72039626]
[1767661208083,0.001,3211.6,3211.1,1.29946753]
[1767661208282,0.001,3211.6,3211.1,0.816]
[1767661209091,0.001,3211.6,3211.1,3.93018907]
[1767661209291,0.001,3211.6,3211.1,4.83458533]
[1767661210422,0.001,3211.6,3211.1,1.72039626]
[1767661210598,0.001,3211.6,3211.1,0.816]
[1767661210893,0.001,3211.6,3211.1,1.29946593]
[1767661211497,0.001,3211.6,3211.1,4.4136395]
[1767661211797,0.001,3211.6,3211.1,5.31803576]
[1767661211983,0.001,3211.6,3211.2,0.90439626]
[1767661213284,0.001,3211.3,3211.2,0.90439626]
[1767661213486,0.90121866,3211.6,3211.2,0.53180358]
[1767661214902,0.90121866,3211.6,3211.2,3.64590047]
[1767661216504,0.90121866,3211.6,3210.6,0.08871147]
[1767661216665,0.90121866,3211.6,3210.7,0.816]
[1767661216872,0.90121866,3211.6,3210.8,6.2289772]
[1767661217071,0.90121866,3211.6,3210.9,0.90439626]
[1767661217072,0.001,3211.6,3210.9,0.90439626]
[1767661217675,0.90021866,3211.8,3210.9,0.90439626]
[1767661217979,0.90021866,3211.8,3210.8,6.2289772]
[1767661217980,0.90021866,3211.8,3211.0,1.61773361]
[1767661218877,0.90021866,3211.8,3211.0,4.73202534]
[1767661219399,0.90021866,3211.8,3211.1,0.90439626]
[1767661220074,0.90021866,3211.8,3211.0,6.94192369]
[1767661220473,0.001,3211.9,3211.1,0.90439626]
[1767661220680,0.90121866,3211.9,3211.2,0.90439626]
[1767661221002,0.90121866,3211.9,3211.1,1.24970532]
[1767661221371,0.90121866,3211.9,3211.0,0.90439626]
[1767661221569,0.90121866,3211.9,3211.0,4.01868804]
[1767661221778,0.90121866,3211.9,3211.1,3.11418336]
[1767661221982,0.90121866,3211.9,3211.2,0.90439626]
[1767661223092,0.90121866,3211.9,3211.3,3.11400367]
[1767661223278,0.90121866,3211.9,3211.4,1.17832226]
[1767661223481,0.90021866,3212.6,3211.5,0.90439626]
[1767661225617,0.90021866,3212.6,3211.7,0.90439626]
[1767661228615,0.90021866,3212.6,3211.8,0.90439626]
[1767661229127,0.90021866,3213.2,3212.3,5.55512952]
[1767661229329,0.90021866,3213.2,3212.4,1.45990921]
[1767661229827,0.90021866,3213.0,3211.5,0.43088328]
[1767661230030,0.90021866,3212.7,3211.6,1.71939626]
[1767661230198,0.90021866,3212.5,3211.6,4.83308113]
[1767661230399,0.90021866,3212.5,3211.9,0.90439626]
[1767661230802,0.90021866,3212.5,3211.9,4.01779224]
[1767661231008,0.90021866,3212.5,3212.0,0.40177922]
[1767661232028,0.01153872,3213.0,3211.9,4.01781794]
[1767661232029,0.94096699,3213.0,3211.9,4.01781794]
[1767661232216,0.94096699,3213.0,3212.0,0.91302791]
[1767661234025,0.94096699,3212.7,3211.6,0.815]
[1767661234229,0.94096699,3212.5,3211.6,0.815]
[1767661234421,0.94096699,3212.5,3211.6,1.72802791]
[1767661234599,0.94096699,3212.5,3211.7,0.17280279]
[1767661236502,0.94096699,3212.5,3211.8,0.91302791]
[1767661236902,0.94096699,3213.1,3212.0,0.91302791]
[1767661237115,0.94096699,3213.0,3212.0,0.91302791]
[1767661237626,0.001,3212.2,3212.0,0.91302791]
[1767661237938,0.94096699,3212.8,3212.1,0.55637612]
[1767661238734,0.94096699,3212.8,3212.1,1.46940403]
[1767661239031,0.94096699,3212.8,3212.2,0.91302791]
[1767661239218,0.94096699,3213.1,3212.2,0.91302791]
[1767661241241,0.94096699,3213.1,3212.3,0.91302791]
[1767661241398,0.94096699,3213.7,3212.4,0.40261577]
[1767661241605,0.94096699,3213.6,3212.2,3.11312974]
[1767661241814,0.94096699,3213.4,3212.2,3.11312974]
[1767661242009,0.94096699,3213.2,3212.1,4.48455873]
[1767661242220,0.94096699,3213.2,3212.1,1.37137612]
[1767661242436,0.01153872,3213.1,3212.1,1.37137612]
[1767661242603,0.94096699,3213.0,3212.1,1.37137612]
[1767661242805,0.94096699,3213.0,3212.2,0.91302791]
[1767661243132,0.94096699,3213.0,3212.3,0.91302791]
[1767661243847,0.94096699,3213.2,3212.3,0.91302791]
[1767661244345,3.11197581,3213.4,3212.3,0.91302791]
[1767661244739,0.94096699,3213.3,3212.3,0.91302791]
[1767661245642,0.94096699,3213.2,3212.3,0.91302791]
[1767661245844,0.94096699,3213.2,3212.4,0.91302791]
[1767661246144,0.94096699,3213.2,3212.3,3.11300237]
[1767661246145,0.94096699,3213.2,3212.6,0.91302791]
[1767661246711,0.94096699,3213.5,3212.6,0.91302791]
[1767661248027,1.08738959,3213.6,3212.6,4.65073326]
[1767661248224,0.94096699,3213.7,3212.7,0.91302791]
[1767661249421,0.94096699,3213.7,3212.8,4.65073326]
[1767661249627,0.94096699,3213.7,3212.9,0.91302791]
[1767661250132,0.001,3213.2,3213.0,0.91302791]
[1767661250456,4.05226752,3214.1,3213.1,5.46573326]
[1767661250457,0.94096699,3214.1,3213.1,5.46573326]
[1767661250651,0.94096699,3214.1,3213.2,0.54657333]
[1767661251041,0.94096699,3214.1,3213.3,0.91302791]
[1767661251248,0.94096699,3214.5,3213.5,0.91302791]
[1767661251443,0.94096699,3214.5,3213.2,1.45960124]
[1767661251649,0.94096699,3214.4,3213.3,1.60556136]
[1767661251850,0.94096699,3214.4,3213.4,0.91302791]
[1767661252356,0.94096699,3214.4,3213.3,3.80455705]
[1767661252357,0.94096699,3214.4,3213.5,0.91302791]
[1767661253358,0.94096699,3214.3,3213.5,0.91302791]
[1767661254159,0.94096699,3214.7,3213.7,4.65073326]
[1767661254335,0.99901569,3214.9,3213.9,0.9184052]
[1767661255751,0.99901569,3214.7,3213.9,0.9184052]
[1767661255932,0.99901569,3214.5,3213.9,0.9184052]
[1767661256844,0.01153872,3214.7,3213.9,0.9184052]
[1767661257051,0.99901569,3214.7,3213.9,0.9184052]
[1767661257968,0.99901569,3214.6,3213.9,0.9184052]
[1767661258636,1.01055441,3214.5,3213.6,0.9184052]
[1767661258836,0.99901569,3214.4,3213.5,0.815]
[1767661259054,0.99901569,3214.2,3213.5,0.815]
[1767661260279,1.01055441,3214.1,3213.4,0.9184052]
[1767661260490,1.01055441,3214.1,3213.4,1.7334052]
[1767661260648,4.65073326,3214.4,3213.5,0.9184052]
[1767661260649,0.99901569,3214.4,3213.5,0.9184052]
[1767661260846,1.85808836,3215.2,3214.1,0.9184052]
[1767661261069,0.93079743,3215.1,3214.3,4.65073326]
[1767661261261,0.93079743,3215.1,3214.3,5.58645138]
[1767661261462,0.93079743,3215.1,3214.0,5.58645138]
[1767661261781,0.94233615,3215.0,3213.9,0.815]
[1767661261977,0.93079743,3215.0,3214.0,0.93571812]
[1767661262352,0.93079743,3214.9,3213.6,4.22078761]
[1767661262552,0.94233615,3214.9,3213.7,0.815]
[1767661263003,0.001,3214.1,3213.8,0.93571812]
[1767661263284,0.93079743,3214.7,3213.9,0.17507181]
[1767661263469,0.93079743,3214.7,3213.8,0.93571812]
[1767661263659,0.01153872,3214.6,3213.8,0.93571812]
[1767661263850,0.94233615,3214.6,3213.6,0.002]
[1767661264053,0.94233615,3214.6,3213.6,0.817]
[1767661264248,0.93079743,3214.4,3213.6,0.817]
[1767661264454,0.41570883,3214.3,3213.6,0.002]
[1767661264685,0.93079743,3214.2,3213.6,0.002]
[1767661264852,0.93079743,3214.2,3213.2,0.93571812]
[1767661265057,0.93079743,3214.2,3213.1,3.83]
[1767661265362,0.93079743,3214.2,3213.0,1.75071812]
[1767661266364,0.93079743,3214.0,3213.0,0.815]
[1767661266562,0.93079743,3213.8,3213.0,0.815]
[1767661267760,0.93079743,3214.1,3213.1,0.93571812]
[1767661267963,0.93079743,3214.1,3213.0,0.815]
[1767661268671,0.88538967,3214.0,3213.0,0.815]
[1767661269060,3.11084033,3214.6,3213.0,0.815]
[1767661269061,0.93079743,3217.2,3215.1,1.02242959]
[1767661269310,0.94233615,3217.1,3215.8,0.08671147]
[1767661269602,0.93079743,3216.9,3215.8,0.08671147]
[1767661269761,0.93079743,3216.7,3215.8,0.08671147]
[1767661270543,0.93079743,3216.5,3215.2,0.93571812]
[1767661270790,0.93079743,3216.3,3215.1,3.92524776]
[1767661270991,0.93079743,3216.3,3215.2,0.08671147]
[1767661271200,0.93079743,3216.3,3215.2,1.02242959]
[1767661271405,4.85451385,3216.8,3215.3,0.93571812]
[1767661271610,4.85451385,3216.8,3215.5,0.93571812]
[1767661271902,0.93079743,3216.7,3215.5,0.93571812]
[1767661272105,0.01153872,3216.6,3215.5,0.93571812]
[1767661273197,0.01153872,3216.8,3215.6,1.02242959]
[1767661273395,0.82653872,3217.0,3215.9,0.93571812]
[1767661273610,1.75733615,3217.0,3215.9,0.93571812]
[1767661273763,1.10653105,3216.9,3215.6,1.02242959]
[1767661273964,0.93079743,3216.7,3215.6,1.83742959]
[1767661274188,0.93079743,3216.7,3215.6,0.815]
[1767661274189,0.93079743,3216.6,3215.6,0.815]
[1767661274387,0.93079743,3216.6,3215.6,1.75071812]
[1767661274898,1.11806977,3216.9,3215.7,0.93571812]
[1767661275097,1.43495324,3216.8,3215.7,4.04544778]
[1767661275594,0.17573362,3216.9,3215.8,0.93571812]
[1767661275797,0.17573362,3216.9,3216.0,0.93571812]
[1767661275997,0.01942219,3216.9,3216.3,0.93571812]
[1767661276168,3.1074654,3218.1,3216.6,0.93571812]
[1767661276169,0.93079743,3218.0,3216.6,0.93571812]
[1767661276369,0.94233615,3217.9,3216.6,0.93571812]
[1767661276575,0.89770361,3217.9,3216.6,0.815]
[1767661276774,0.93079743,3217.7,3216.2,0.815]
[1767661276989,0.93079743,3217.6,3216.3,3.1091627]
[1767661277191,0.93079743,3217.6,3216.3,4.04488082]
[1767661277397,0.93079743,3217.4,3216.4,0.815]
[1767661277593,0.94233615,3217.3,3216.4,0.815]
[1767661277795,0.93079743,3217.3,3216.4,0.815]
[1767661278030,0.01153872,3217.2,3216.0,0.93571812]
[1767661278201,0.93079743,3217.1,3215.7,0.93571812]
[1767661278377,0.93079743,3217.1,3215.8,0.815]
[1767661278994,0.93079743,3217.0,3215.8,3.92464348]
[1767661279295,0.63664923,3217.0,3215.8,3.92464348]
[1767661279504,3.26075509,3217.4,3215.8,4.8603616]
[1767661279675,6.54246813,3217.3,3215.8,4.8603616]
[1767661279870,6.54246813,3217.3,3215.8,1.75071812]
[1767661280106,3.43427182,3217.3,3215.8,4.86035031]
[1767661280700,3.43427182,3217.3,3215.9,0.93571812]
[1767661280903,0.32607551,3217.3,3215.9,0.93571812]
[1767661281113,3.43433225,3217.3,3216.0,4.84216666]
[1767661281278,3.43433225,3217.3,3216.0,7.95161939]
[1767661281279,0.32607551,3217.3,3216.0,7.95161939]
[1767661281481,0.32607551,3217.3,3216.1,0.93571812]
[1767661282629,0.32607551,3217.3,3216.3,0.93571812]
[1767661282776,3.10823716,3217.3,3216.3,0.93571812]
[1767661283117,12.62523352,3217.9,3216.3,0.93571812]
[1767661283409,12.62523352,3217.9,3216.4,0.93571812]
[1767661284684,3.10761676,3217.9,3216.4,0.93571812]
[1767661284890,0.31076168,3217.8,3216.6,0.93571812]
[1767661285082,0.31076168,3217.8,3216.7,0.93571812]
[1767661285278,3.10743761,3218.1,3216.9,0.93571812]
[1767661285594,6.21493195,3218.1,3216.9,0.93571812]
[1767661286201,6.21493195,3218.1,3217.0,0.814]
[1767661286380,3.10743761,3218.1,3217.1,0.93571812]
[1767661286709,3.10723052,3218.3,3217.1,0.93571812]
[1767661286905,0.39212305,3218.2,3217.1,0.93571812]
[1767661287091,6.21484726,3218.1,3217.1,0.93571812]
[1767661287593,6.21484726,3218.1,3216.8,0.93571812]
[1767661288809,3.10742363,3218.1,3216.8,0.93571812]
[1767661289112,6.21484726,3218.1,3216.8,0.93571812]
[1767661289309,0.002,3217.8,3216.8,0.93571812]
[1767661293888,0.002,3217.8,3217.0,0.9019818]
[1767661299605,6.19486176,3218.4,3217.3,0.9019818]
[1767661301214,3.08772779,3218.4,3217.3,0.9019818]
[1767661301413,3.10669411,3218.9,3217.5,0.9019818]
[1767661301414,3.10665134,3218.9,3217.5,0.9019818]
[1767661301615,0.95166513,3218.8,3217.5,0.9019818]
[1767661301917,3.10645832,3219.1,3217.7,0.9019818]
[1767661302121,3.92040424,3219.2,3217.9,0.9019818]
[1767661302322,3.92040424,3219.2,3217.8,0.814]
[1767661302323,0.814,3219.8,3218.1,0.9019818]
[1767661302487,0.814,3219.8,3218.2,1.7159818]
[1767661302693,1.01310963,3219.7,3218.3,0.9019818]
[1767661303027,1.82710963,3219.7,3218.3,0.9019818]
[1767661303213,1.82910963,3219.7,3218.3,0.9019818]
[1767661303392,6.21195178,3219.6,3218.3,0.9019818]
[1767661304429,1.01510963,3219.7,3218.4,0.9019818]
[1767661304609,0.002,3219.7,3218.6,0.9019818]
[1767661305013,0.002,3219.7,3218.8,0.9019818]
[1767661305192,0.002,3219.7,3219.0,0.9019818]
[1767661305398,1.84196018,3220.0,3219.2,0.9019818]
[1767661305598,3.19066035,3221.8,3219.7,0.9019818]
[1767661305599,3.10669279,3221.0,3219.7,0.9019818]
[1767661305919,0.002,3220.8,3219.7,0.9019818]
[1767661306337,0.31066928,3220.9,3219.7,0.9019818]
[1767661306517,6.21102909,3221.2,3219.7,0.9019818]
[1767661306821,0.002,3221.1,3219.7,0.9019818]
[1767661307435,0.002,3221.1,3219.8,0.9019818]
[1767661308702,0.002,3221.5,3219.8,0.9019818]
[1767661308902,6.20809534,3221.6,3219.8,0.9019818]
[1767661309102,0.62080953,3221.5,3220.0,0.9019818]
[1767661309530,6.20848078,3221.4,3220.0,0.9019818]
[1767661309715,0.002,3221.3,3220.0,0.9019818]
[1767661310021,0.002,3221.3,3219.5,1.27519718]
[1767661310022,0.002,3221.3,3219.6,0.9019818]
[1767661311530,0.9039818,3221.2,3219.6,0.9019818]
[1767661311833,0.9039818,3221.2,3219.3,0.9019818]
[1767661312130,0.9039818,3221.2,3219.4,0.9019818]
[1767661312518,12.41696156,3221.4,3219.7,0.9019818]
[1767661312519,6.20848078,3221.4,3219.7,0.9019818]
[1767661312720,6.20848078,3221.4,3219.9,0.9019818]
[1767661313032,6.20848078,3221.4,3220.1,0.9019818]
[1767661313212,0.9039818,3221.3,3219.6,0.9019818]
[1767661313412,0.9039818,3221.3,3219.8,0.9019818]
[1767661313628,6.209059,3221.1,3219.8,0.9019818]
[1767661314012,6.209059,3221.1,3219.5,3.10598899]
[1767661314013,6.209059,3221.1,3220.0,0.9019818]
[1767661314200,3.81569312,3221.2,3220.0,0.9019818]
[1767661314404,6.20889372,3221.2,3220.0,0.9019818]
[1767661314846,1.52479133,3221.5,3220.4,0.9979766]
[1767661314847,0.62080953,3221.5,3220.4,0.9979766]
[1767661315140,7.10976558,3222.8,3220.7,0.9979766]
[1767661315300,7.10976558,3222.8,3221.2,0.08671147]
[1767661315301,3.10289189,3222.8,3221.2,0.08671147]
[1767661315500,3.10167535,3224.1,3221.6,0.9979766]
[1767661315501,3.91625504,3223.5,3221.6,0.9979766]
[1767661315743,0.9039818,3223.4,3221.6,0.9979766]
[1767661315911,1.0639818,3223.2,3221.6,0.9979766]
[1767661316737,0.002,3222.5,3221.6,0.9979766]
[1767661317059,0.002,3222.5,3221.2,0.9979766]
[1767661317205,0.002,3222.5,3220.5,0.9979766]
[1767661317206,0.9059818,3222.5,3220.5,0.9979766]
[1767661317402,0.9039818,3222.3,3220.5,0.9979766]
[1767661317710,13.31786048,3222.2,3220.5,0.9979766]
[1767661317918,2.45512884,3222.1,3220.5,0.9979766]
[1767661318218,3.35911064,3222.1,3220.5,0.9979766]
[1767661319235,2.45512884,3222.1,3220.5,0.9979766]
[1767661319436,0.9039818,3222.0,3220.5,0.9979766]
[1767661319738,0.9039818,3221.8,3219.9,0.9979766]
[1767661319902,1.33190164,3221.7,3219.9,0.9979766]
[1767661320313,0.9039818,3221.6,3219.9,0.9979766]
[1767661320515,0.813,3221.5,3219.9,0.9979766]
[1767661320727,1.7169818,3221.5,3219.9,0.9979766]
[1767661320936,1.7169818,3221.5,3219.6,0.001]
[1767661320937,0.9039818,3221.4,3219.6,0.001]
[1767661321111,0.9039818,3221.2,3219.6,0.001]
[1767661321706,0.17169818,3221.3,3219.8,0.92176478]
[1767661321707,3.27604062,3221.3,3219.8,0.92176478]
[1767661322030,3.27607888,3221.3,3220.0,0.92176478]
[1767661322231,0.17169818,3221.3,3220.0,0.92176478]
[1767661322628,0.9039818,3222.3,3220.2,1.00847625]
[1767661322839,7.01955412,3222.4,3220.5,0.92176478]
[1767661323088,7.01955412,3222.4,3220.7,0.92176478]
[1767661323219,10.12283118,3222.4,3220.7,0.92176478]
[1767661323409,6.20655412,3222.4,3220.7,0.92176478]
[1767661323634,6.20693934,3222.2,3220.9,0.92176478]
[1767661324012,6.20693934,3222.2,3220.4,0.92176478]
[1767661324013,9.31040901,3222.2,3220.4,0.92176478]
[1767661324214,0.99069327,3222.1,3220.4,0.92176478]
[1767661324928,0.9039818,3222.1,3220.4,0.92176478]
[1767661325123,9.31040901,3222.2,3220.4,0.92176478]
[1767661325328,1.89609759,3222.1,3220.5,0.92176478]
[1767661325717,9.31098696,3222.0,3220.5,0.92176478]
[1767661326524,6.20732464,3222.0,3220.5,0.92176478]
[1767661326723,0.813,3221.9,3220.5,0.92176478]
[1767661326946,1.08309759,3222.1,3220.6,0.92176478]
[1767661326947,4.18668532,3222.1,3220.6,0.92176478]
[1767661327133,4.53724316,3222.3,3220.8,0.92176478]
[1767661327479,4.53724316,3222.3,3221.0,0.92176478]
[1767661328038,0.62085541,3222.3,3221.1,0.92176478]
[1767661328391,0.002,3222.5,3221.2,0.92176478]
[1767661328536,0.002,3222.5,3221.4,0.92176478]
[1767661329735,7.10899544,3223.2,3221.4,0.92176478]
[1767661329967,10.21150226,3223.2,3221.5,0.813]
[1767661330265,0.002,3222.0,3221.6,0.92176478]
[1767661330600,3.91550682,3223.2,3221.6,1.09524126]
[1767661330965,7.01801364,3223.2,3221.6,1.09524126]
[1767661331145,7.01801364,3223.2,3221.6,4.19928893]
[1767661331349,7.01801364,3223.2,3221.7,0.92176478]
[1767661331546,3.91550682,3223.2,3221.7,0.92176478]
[1767661331860,0.39175068,3223.1,3221.9,0.92176478]
[1767661332059,3.10269934,3223.0,3221.9,0.92176478]
[1767661332459,6.20539868,3223.0,3221.9,0.92176478]
[1767661332660,6.20539868,3223.0,3221.5,0.92176478]
[1767661332855,9.30809802,3223.0,3221.5,0.92176478]
[1767661333167,0.96998487,3222.9,3221.5,0.92176478]
[1767661333471,0.96998487,3222.9,3221.1,0.92176478]
[1767661333667,0.813,3222.8,3221.1,0.92176478]
[1767661333872,0.75067037,3222.7,3221.1,0.92176478]
[1767661334067,6.20616892,3222.6,3221.1,0.92176478]
[1767661334287,1.00598334,3222.5,3221.1,0.92176478]
[1767661334462,1.84336518,3222.5,3220.7,0.92176478]
[1767661334854,0.83738184,3222.3,3220.7,0.92176478]
[1767661335054,0.08671147,3222.1,3220.7,0.92176478]
[1767661335256,0.08671147,3221.8,3220.2,0.92176478]
[1767661335471,0.83738184,3221.8,3220.2,0.92176478]
[1767661335756,6.73621606,3221.6,3219.8,0.92176478]
[1767661335950,0.75067037,3221.6,3219.8,0.92176478]
[1767661336190,9.31272117,3221.4,3219.8,0.92176478]
[1767661336505,9.31272117,3221.4,3219.8,1.13878792]
[1767661336506,1.01257212,3221.3,3219.8,1.13878792]
[1767661336789,0.813,3221.2,3219.8,1.13878792]
[1767661336987,1.01257212,3221.3,3219.9,0.92176478]
[1767661337159,3.10415058,3221.5,3220.1,0.92176478]
[1767661337361,6.20732464,3222.0,3220.1,0.92176478]
[1767661337575,3.10366232,3222.0,3220.5,0.92176478]
[1767661337764,3.10366232,3222.0,3219.8,6.51525958]
[1767661337765,3.10366232,3222.0,3220.7,0.92176478]
[1767661337961,3.10366232,3222.0,3220.8,0.92176478]
[1767661338172,3.10385498,3221.8,3220.8,0.92176478]
[1767661339380,3.43065042,3221.9,3220.8,0.92176478]
[1767661339560,6.53443079,3221.9,3220.8,0.92176478]
[1767661339994,3.43065042,3221.9,3220.8,0.92176478]
[1767661340193,6.53443079,3221.9,3220.8,0.92176478]
[1767661340388,0.65344308,3221.8,3220.8,0.92176478]
[1767661341106,3.43064648,3221.9,3220.8,0.92176478]
[1767661341390,6.53442291,3221.9,3220.4,0.92176478]
[1767661341897,13.49264614,3221.9,3220.4,0.92176478]
[1767661342093,0.08671147,3221.7,3220.0,0.92176478]
[1767661342307,0.75067037,3221.6,3219.6,0.001]
[1767661342592,5.89883422,3221.2,3219.7,1.09213824]
[1767661342789,0.75067037,3221.4,3219.6,0.001]
[1767661342989,0.83738184,3221.3,3219.6,0.001]
[1767661344505,0.75067037,3221.1,3219.6,0.001]
[1767661344789,2.88051066,3221.0,3219.6,0.001]
[1767661345418,0.75067037,3220.9,3218.9,0.813]
[1767661345560,0.75067037,3220.9,3218.7,0.92176478]
[1767661345561,0.83738184,3220.5,3218.7,0.92176478]
[1767661345766,0.83738184,3220.5,3218.1,0.92176478]
[1767661345767,0.08671147,3219.9,3218.1,0.92176478]
[1767661346074,0.75067037,3220.1,3218.1,0.92176478]
[1767661346276,9.31763826,3219.7,3218.1,0.92176478]
[1767661346475,1.01306383,3219.6,3218.1,0.92176478]
[1767661347181,1.01306383,3219.6,3217.8,0.92176478]
[1767661347182,1.85044567,3219.6,3217.8,0.92176478]
[1767661347362,0.08671147,3219.4,3217.8,0.92176478]
[1767661347817,6.73621606,3219.1,3217.3,0.92276478]
[1767661348087,6.73621606,3219.1,3217.3,0.001]
[1767661348088,0.08671147,3218.7,3217.3,0.001]
[1767661348291,9.32140191,3218.4,3217.3,0.001]